fUSD/lending_fUSD_20250423
["ID","MTS","AMOUNT","RATE_DAILY","PERIOD"]
[358764561,1745417440733,-500.0,0.00044557,120]
[358764564,1745417440743,-500.0,0.00044557,120]
[358764565,1745417440752,-500.0,0.00044557,120]
[358764567,1745417440761,-234.16,0.0004459,2]
[358764569,1745417440771,-20045.0,0.000446,2]
[358764572,1745417440781,-157.46160736,0.00044603,30]
[358764573,1745417440790,-157.46160737,0.00044603,30]
[358764576,1745417440800,-174.95734152,0.0004474,30]
[358764577,1745417440809,-174.95734152,0.00044767,30]
[358764579,1745417440819,-157.46160736,0.00044822,30]
[358764581,1745417440828,-157.46160737,0.00044822,30]
[358764584,1745417440838,-234.16,0.0004487,2]
[358764586,1745417440847,-2581.16780118,0.00044872,15]
[358764588,1745417440857,-1460.0,0.0004488,120]
[358764590,1745417440866,-1730.4188,0.000449,2]
[358764592,1745417440876,-614.5301,0.000449,2]
[358764593,1745417440885,-344.3544,0.000449,2]
[358764595,1745417440895,-2012.5339,0.000449,2]
[358764597,1745417440904,-1000.0,0.00044904,2]
[358764599,1745417440914,-174.95734152,0.00044932,30]
[358764601,1745417440923,-152.0,0.00044948,4]
[358764603,1745417440933,-506.77033158,0.00044973,10]
[358764605,1745417440949,-500.0,0.00044973,10]
[358764607,1745417440958,-234.16,0.0004499,2]
[358764609,1745417440968,-234.16,0.0004499,2]
[358764611,1745417440978,-234.16,0.0004499,2]
[358764614,1745417440989,-500.0,0.00044999,2]
[358764615,1745417440998,-236.83846026,0.00044999,2]
[358764618,1745417441009,-50000.0,0.00045,2]
[358764620,1745417441020,-1294.0,0.00045,7]
[358764621,1745417441030,-5992.6012292,0.00045,7]
[358764623,1745417441040,-800.0,0.00045,2]
[358764626,1745417441050,-2000.0,0.00045,2]
[358764628,1745417441060,-2966.5564286,0.00045003,18]
[358764629,1745417441070,-157.46160736,0.00045041,30]
[358764632,1745417441080,-157.46160737,0.00045041,30]
[358764634,1745417441090,-174.95734152,0.00045096,30]
[358764635,1745417441100,-500.0,0.00045105,120]
[358764638,1745417441110,-500.0,0.00045105,120]
[358764640,1745417441120,-500.0,0.00045105,120]
[358764642,1745417441130,-5142.38003192,0.00045111,20]
[358764644,1745417441140,-500.0,0.00045138,2]
[358764646,1745417441150,-3500.0,0.00045138,10]
[358764647,1745417441161,-500.0,0.00045138,30]
[358764649,1745417441171,-500.0,0.00045138,30]
[358764651,1745417441180,-234.16,0.00045175,2]
[358764653,1745417441196,-174.95734152,0.00045178,30]
[358764656,1745417441208,-10244.83,0.00045185,2]
[358764658,1745417441218,-1155.38,0.00045185,2]
[358764660,1745417441228,-2581.16780118,0.00045201,15]
[358764662,1745417441238,-159.75,0.00045212,120]
[358764664,1745417441248,-157.46160736,0.0004526,30]
[358764666,1745417441258,-157.46160737,0.0004526,30]
[358764668,1745417441267,-174.95734152,0.00045288,30]
[358764670,1745417441278,-302.94,0.00045397,2]
[358764672,1745417441288,-200.0,0.00045427,2]
[358764674,1745417441297,-174.95734152,0.00045452,30]
[358764676,1745417441307,-833.72958621,0.00045459,2]
[358764678,1745417441316,-500.0,0.00045479,30]
[358764680,1745417441327,-157.46160736,0.00045479,30]
[358764682,1745417441338,-157.46160737,0.00045479,30]
[358764684,1745417441348,-500.0,0.00045506,60]
[358764686,1745417441358,-189.18,0.00045506,60]
[358764688,1745417441368,-2581.16780118,0.00045529,15]
[358764690,1745417441379,-174.95734152,0.00045562,30]
[358764692,1745417441388,-234.16,0.0004559,2]
[358764694,1745417441398,-5928.21733816,0.000456,4]
[358764696,1745417441408,-833.72958621,0.00045601,2]
[358764698,1745417441418,-174.95734152,0.00045644,30]
[358764700,1745417441428,-549.4693129,0.00045653,120]
[358764702,1745417441440,-500.0,0.00045653,120]
[358764704,1745417441450,-616.45863404,0.00045653,120]
[358764706,1745417441459,-157.46160736,0.00045699,30]
[358764708,1745417441469,-157.46160737,0.00045699,30]
[358764710,1745417441478,-1812.59,0.000457,2]
[358764712,1745417441488,-1812.59,0.000457,2]
[358764713,1745417441498,-1812.59,0.000457,2]
[358764715,1745417441507,-1812.59,0.000457,2]
[358764718,1745417441517,-1812.59,0.000457,2]
[358764720,1745417441527,-879.38253565,0.0004577,120]
[358764721,1745417441536,-150.0,0.00045791,2]
[358764724,1745417441547,-5000.0,0.000458,6]
[358764726,1745417441557,-174.95734152,0.00045808,30]
[358764728,1745417441567,-150.0,0.00045839,2]
[358764730,1745417441576,-150.0,0.00045842,2]
[358764732,1745417441585,-234.16,0.00045848,2]
[358764734,1745417441594,-2581.16780118,0.00045858,15]
[358764736,1745417441603,-150.0,0.00045863,2]
[358764738,1745417441612,-234.16,0.0004587,2]
[358764740,1745417441622,-150.0,0.00045879,2]
[358764742,1745417441632,-29245.7365731,0.0004588,4]
[358764744,1745417441641,-150.0,0.00045881,2]
[358764746,1745417441650,-150.0,0.00045883,2]
[358764748,1745417441659,-2330.51387597,0.0004589,18]
[358764750,1745417441669,-150.0,0.00045893,2]
[358764752,1745417441679,-255.8998,0.00045899,2]
[358764754,1745417441691,-150.0,0.00045916,2]
[358764756,1745417441701,-157.46160736,0.00045918,30]
[358764758,1745417441710,-157.46160737,0.00045918,30]
[358764760,1745417441720,-1000.0,0.00045931,14]
[358764762,1745417441730,-174.95734152,0.00045945,30]
[358764764,1745417441739,-150.0,0.00045957,2]
[358764766,1745417441748,-150.0,0.0004596,2]
[358764768,1745417441758,-500.0,0.00045973,10]
[358764770,1745417441767,-214.89670127,0.00045973,10]
[358764772,1745417441777,-500.0,0.00045973,10]
[358764774,1745417441786,-500.0,0.00045973,10]
[358764776,1745417441796,-150.0,0.00045973,2]
[358764778,1745417441806,-150.0,0.00045978,2]
[358764779,1745417441815,-150.0,0.0004599,2]
[358764780,1745417441826,-58491.4731463,0.0004599,4]
[358764781,1745417441835,-833.72958621,0.0004599,2]
[358764782,1745417441844,-150.0,0.00045991,2]
[358764783,1745417441854,-150.0,0.00045993,2]
[358764784,1745417441863,-150.0,0.00045994,2]
[358764785,1745417441873,-500.0,0.00045999,2]
[358764786,1745417441882,-50000.0,0.00046,2]
[358764787,1745417441891,-174.95734152,0.00046,30]
[358764788,1745417441901,-1000.0,0.00046,120]
[358764789,1745417441910,-62000.0,0.00046,10]
[358764790,1745417441919,-150.0,0.00046019,2]
[358764791,1745417441929,-150.0,0.00046065,30]
[358764792,1745417441941,-150.0,0.00046069,2]
[358764793,1745417441950,-150.0,0.00046073,2]
[358764795,1745417441959,-833.72958621,0.00046073,2]
[358764796,1745417441969,-150.0,0.00046076,2]
[358764798,1745417441979,-150.0,0.0004608,2]
[358764800,1745417441989,-150.0,0.00046116,2]
[358764802,1745417441999,-1133.24,0.00046118,2]
[358764804,1745417442010,-342.59,0.00046119,2]
[358764806,1745417442020,-150.0,0.0004612,2]
[358764808,1745417442030,-157.46160736,0.00046137,30]
[358764810,1745417442039,-157.46160737,0.00046137,30]
[358764812,1745417442049,-150.0,0.00046138,2]
[358764814,1745417442058,-150.0,0.0004614,2]
[358764816,1745417442069,-208.22,0.00046142,15]
[358764818,1745417442078,-1270.57,0.00046142,15]
[358764820,1745417442088,-150.0,0.00046144,2]
[358764822,1745417442098,-150.0,0.00046152,2]
[358764824,1745417442108,-174.95734152,0.00046164,30]
[358764826,1745417442117,-160.47,0.00046185,2]
[358764827,1745417442127,-150.0,0.00046186,2]
[358764829,1745417442137,-2581.16780118,0.00046186,15]
[358764831,1745417442146,-150.0,0.00046193,2]
[358764833,1745417442156,-150.0,0.00046194,2]
[358764835,1745417442165,-150.0,0.00046196,2]
[358764837,1745417442175,-150.0,0.00046198,2]
[358764839,1745417442184,-150.0,0.00046199,2]
[358764841,1745417442194,-300.0,0.000462,16]
[358764843,1745417442204,-500.0,0.00046201,120]
[358764845,1745417442214,-150.0,0.00046201,2]
[358764847,1745417442224,-500.0,0.00046203,120]
[358764849,1745417442234,-150.0,0.00046213,2]
[358764851,1745417442243,-150.0,0.00046224,2]
[358764853,1745417442253,-150.0,0.00046228,2]
[358764855,1745417442262,-150.0,0.00046229,2]
[358764857,1745417442272,-150.0,0.00046235,2]
[358764860,1745417442282,-150.0,0.00046237,2]
[358764861,1745417442291,-150.0,0.00046239,2]
[358764863,1745417442300,-150.0,0.00046243,2]
[358764865,1745417442310,-2966.5564286,0.00046245,19]
[358764869,1745417442328,-150.0,0.00046257,2]
[358764871,1745417442345,-150.0,0.00046285,2]
[358764873,1745417442354,-150.0,0.00046286,2]
[358764875,1745417442364,-150.0,0.00046291,2]
[358764877,1745417442375,-150.0,0.00046292,2]
[358764879,1745417442385,-150.0,0.00046294,2]
[358764881,1745417442396,-700.0,0.000463,16]
[358764883,1745417442406,-762.0,0.000463,30]
[358764885,1745417442417,-1000.0,0.00046313,14]
[358764887,1745417442428,-150.0,0.00046317,2]
[358764889,1745417442439,-150.0,0.00046318,2]
[358764891,1745417442449,-150.0,0.00046318,2]
[358764893,1745417442460,-150.0,0.00046328,2]
[358764895,1745417442470,-150.0,0.0004633,2]
[358764898,1745417442480,-150.0,0.00046334,2]
[358764899,1745417442490,-150.0,0.00046339,2]
[358764902,1745417442501,-151.62,0.0004634,2]
[358764904,1745417442511,-500.0,0.0004635,2]
[358764906,1745417442521,-3500.0,0.0004635,10]
[358764908,1745417442531,-500.0,0.0004635,30]
[358764910,1745417442541,-526.24977227,0.0004635,30]
[358764912,1745417442551,-806.90451654,0.0004635,14]
[358764914,1745417442560,-17306.494,0.00046351,2]
[358764916,1745417442570,-150.0,0.00046352,2]
[358764918,1745417442580,-174.95734152,0.00046356,30]
[358764920,1745417442590,-157.46160736,0.00046356,30]
[358764922,1745417442599,-174.95734152,0.00046356,30]
[358764924,1745417442610,-157.46160737,0.00046356,30]
[358764926,1745417442620,-150.0,0.00046357,2]
[358764928,1745417442630,-150.0,0.00046358,2]
[358764930,1745417442640,-150.0,0.00046368,2]
[358764932,1745417442650,-150.0,0.0004637,2]
[358764934,1745417442660,-150.0,0.00046375,2]
[358764936,1745417442670,-150.0,0.00046375,2]
[358764938,1745417442679,-150.0,0.00046378,2]
[358764940,1745417442690,-150.0,0.0004638,2]
[358764942,1745417442700,-150.0,0.00046386,2]
[358764944,1745417442710,-159.87119132,0.00046395,2]
[358764946,1745417442720,-1100.0,0.000464,16]
[358764948,1745417442730,-150.0,0.00046405,2]
[358764950,1745417442740,-150.0,0.00046411,2]
[358764952,1745417442750,-907.29459655,0.00046435,14]
[358764954,1745417442760,-5000.0,0.00046441,120]
[358764957,1745417442777,-150.0,0.00046442,2]
[358764959,1745417442788,-150.0,0.00046442,2]
[358764961,1745417442798,-200.0,0.0004645,40]
[358764963,1745417442808,-150.0,0.00046462,2]
[358764965,1745417442819,-1333.0,0.00046466,120]
[358764967,1745417442830,-150.0,0.00046468,2]
[358764969,1745417442842,-150.0,0.00046469,2]
[358764971,1745417442852,-29245.7365731,0.00046475,4]
[358764973,1745417442863,-150.0,0.00046478,2]
[358764975,1745417442874,-1000.0,0.00046478,14]
[358764978,1745417442884,-150.0,0.00046481,2]
[358764980,1745417442896,-150.0,0.00046482,2]
[358764982,1745417442906,-150.0,0.00046482,2]
[358764984,1745417442916,-2840.9426,0.00046485,2]
[358764986,1745417442927,-150.0,0.00046487,2]
[358764989,1745417442939,-150.0,0.00046494,2]
[358764991,1745417442951,-150.0,0.00046496,2]
[358764993,1745417442963,-150.0,0.00046498,2]
[358764995,1745417442973,-1400.0,0.000465,16]
[358764997,1745417442983,-391.33,0.000465,42]
[358764999,1745417442993,-391.33,0.000465,42]
[358765001,1745417443004,-391.33,0.000465,42]
[358765003,1745417443014,-391.33,0.000465,42]
[358765005,1745417443025,-391.33,0.000465,42]
[358765008,1745417443035,-391.33,0.000465,42]
[358765010,1745417443046,-391.33,0.000465,42]
[358765012,1745417443056,-391.33,0.000465,42]
[358765014,1745417443066,-391.33,0.000465,42]
[358765016,1745417443076,-391.33,0.000465,42]
[358765018,1745417443086,-391.33,0.000465,42]
[358765021,1745417443096,-391.33,0.000465,42]
[358765024,1745417443107,-151.56608142,0.00046502,22]
[358765028,1745417443118,-1000.0,0.00046503,14]
[358765031,1745417443129,-150.0,0.00046506,2]
[358765033,1745417443140,-150.0,0.00046509,2]
[358765035,1745417443150,-195.87325158,0.00046513,120]
[358765037,1745417443161,-150.0,0.00046514,2]
[358765039,1745417443171,-837.62198032,0.00046515,15]
[358765041,1745417443182,-2581.16780118,0.00046515,15]
[358765043,1745417443193,-3613.58537743,0.00046515,2]
[358765045,1745417443203,-169.72532864,0.00046515,2]
[358765048,1745417443214,-1860.83806174,0.00046515,2]
[358765050,1745417443230,-2000.0,0.00046515,3]
[358765052,1745417443240,-150.0,0.00046521,2]
[358765054,1745417443250,-833.72958621,0.00046523,2]
[358765056,1745417443260,-150.0,0.00046525,2]
[358765058,1745417443270,-162.96210182,0.00046527,2]
[358765060,1745417443280,-150.0,0.00046529,2]
[358765062,1745417443290,-150.0,0.00046529,2]
[358765064,1745417443300,-150.0,0.00046531,2]
[358765066,1745417443310,-150.0,0.00046531,2]
[358765068,1745417443321,-170.39120201,0.00046541,24]
[358765070,1745417443331,-245.31754913,0.00046541,22]
[358765072,1745417443344,-150.0,0.00046543,2]
[358765074,1745417443354,-225.0,0.00046547,2]
[358765076,1745417443364,-170.391202,0.00046549,24]
[358765078,1745417443374,-150.0,0.0004655,2]
[358765080,1745417443386,-245.31754913,0.00046552,22]
[358765082,1745417443396,-150.0,0.00046552,2]
[358765084,1745417443406,-170.391202,0.00046558,24]
[358765086,1745417443418,-245.31754913,0.00046562,22]
[358765088,1745417443428,-170.391202,0.00046566,24]
[358765090,1745417443438,-500.0,0.0004657,2]
[358765092,1745417443448,-245.31754913,0.00046573,22]
[358765094,1745417443457,-500.0,0.00046573,10]
[358765096,1745417443467,-160.13550805,0.00046573,10]
[358765098,1745417443477,-500.0,0.00046573,10]
[358765100,1745417443487,-500.0,0.00046573,10]
[358765102,1745417443498,-500.0,0.00046573,10]
[358765105,1745417443508,-314.99822762,0.00046573,10]
[358765107,1745417443518,-170.391202,0.00046575,24]
[358765109,1745417443528,-150.0,0.00046575,120]
[358765111,1745417443538,-150.0,0.00046575,60]
[358765113,1745417443548,-150.0,0.00046575,60]
[358765115,1745417443559,-151.55449105,0.00046575,60]
[358765117,1745417443569,-150.0,0.00046575,120]
[358765119,1745417443579,-150.0,0.00046575,120]
[358765121,1745417443591,-200.0,0.00046575,120]
[358765123,1745417443601,-153.69770675,0.00046575,120]
[358765125,1745417443611,-150.0,0.00046575,120]
[358765127,1745417443622,-150.0,0.00046575,10]
[358765129,1745417443632,-150.0,0.00046578,7]
[358765131,1745417443643,-500.0,0.00046582,2]
[358765133,1745417443653,-3500.0,0.00046582,10]
[358765136,1745417443667,-170.391202,0.00046583,24]
[358765138,1745417443678,-245.31754913,0.00046583,22]
[358765140,1745417443690,-500.0,0.00046585,17]
[358765142,1745417443701,-500.0,0.00046585,17]
[358765144,1745417443711,-500.0,0.00046585,30]
[358765146,1745417443721,-500.0,0.00046585,30]
[358765148,1745417443732,-500.0,0.00046585,30]
[358765150,1745417443742,-500.0,0.00046585,17]
[358765152,1745417443752,-500.0,0.00046585,17]
[358765154,1745417443762,-500.0,0.00046585,17]
[358765156,1745417443772,-500.0,0.00046585,30]
[358765158,1745417443782,-500.0,0.00046585,30]
[358765159,1745417443792,-500.0,0.00046585,30]
[358765160,1745417443802,-500.0,0.00046585,30]
[358765161,1745417443812,-700.0,0.00046585,17]
[358765162,1745417443821,-700.0,0.00046585,17]
[358765163,1745417443831,-700.0,0.00046585,17]
[358765164,1745417443842,-700.0,0.00046585,17]
[358765165,1745417443852,-700.0,0.00046585,17]
[358765166,1745417443862,-700.0,0.00046587,17]
[358765167,1745417443872,-700.0,0.00046587,17]
[358765168,1745417443882,-700.0,0.00046587,17]
[358765169,1745417443891,-700.0,0.00046587,17]
[358765170,1745417443901,-700.0,0.00046587,17]
[358765171,1745417443911,-500.0,0.0004659,17]
[358765172,1745417443921,-500.0,0.0004659,17]
[358765173,1745417443932,-500.0,0.0004659,17]
[358765175,1745417443942,-500.0,0.0004659,17]
[358765176,1745417443953,-150.0,0.0004659,7]
[358765179,1745417443963,-23913.41872906,0.0004659,4]
[358765187,1745417444035,-1000.0,0.0004659,4]
[358765195,1745417444099,-2792.61,0.0004659,4]
[358765315,1745417445321,-150.0,0.00045442,2]
[358765317,1745417445332,-150.0,0.00045459,2]
[358765320,1745417445346,-150.0,0.00045515,2]
[358765322,1745417445357,-150.0,0.00045522,2]
[358765324,1745417445368,-150.0,0.00045595,2]
[358765326,1745417445379,-150.0,0.00045681,2]
[358765328,1745417445391,-150.0,0.00045722,2]
[358765331,1745417445403,-150.0,0.0004575,2]
[358765333,1745417445414,-150.0,0.00045783,2]
[358765335,1745417445426,-150.0,0.00045829,2]
[358765337,1745417445437,-150.0,0.00045849,2]
[358765339,1745417445450,-150.0,0.0004587,2]
[358765341,1745417445462,-150.0,0.00045883,2]
[358765344,1745417445473,-150.0,0.0004602,2]
[358765346,1745417445484,-150.0,0.00046025,2]
[358765348,1745417445495,-150.0,0.00046026,2]
[358765350,1745417445506,-150.0,0.00046048,2]
[358765352,1745417445518,-150.0,0.00046072,2]
[358765354,1745417445529,-150.0,0.00046227,2]
[358765356,1745417445540,-125.17845879,0.00046264,2]
[358765359,1745417445553,-24.82154121,0.00046264,2]
[358765361,1745417445564,-150.0,0.00046266,2]
[358765363,1745417445576,-155.97485683,0.00046319,2]
[358765365,1745417445587,-150.0,0.00046323,2]
[358765367,1745417445598,-150.0,0.00046345,2]
[358765370,1745417445609,-150.0,0.00046406,2]
[358765372,1745417445620,-150.0,0.00046484,2]
[358765374,1745417445631,-150.0,0.00046521,2]
[358765375,1745417445642,-86.71360196,0.0004659,4]
[358765376,1745417445708,-931.42,0.0004659,4]
[358765377,1745417445722,-521.57424208,0.0004659,4]
[358765378,1745417445733,-514.0,0.0004659,2]
[358765379,1745417445745,-150.0,0.00046592,7]
[358765380,1745417445757,-150.0,0.00046593,7]
[358765381,1745417445770,-269.78704285,0.00046594,7]
[358765383,1745417445781,-150.0,0.00046598,7]
[358765385,1745417445793,-1447.47,0.000466,2]
[358765387,1745417445804,-200.0,0.000466,67]
[358765389,1745417445816,-200.0,0.000466,67]
[358765391,1745417445827,-1013.22,0.000466,91]
[358765393,1745417445839,-945.0,0.000466,30]
[358765395,1745417445850,-991.5,0.000466,30]
[358765397,1745417445861,-1800.0,0.000466,17]
[358765400,1745417445873,-772.0,0.000466,30]
[358765402,1745417445885,-150.75999909,0.000466,7]
[358765404,1745417445895,-1000.0,0.000466,7]
[358765406,1745417445906,-333.406799,0.000466,30]
[358765408,1745417445917,-6630.69,0.00046602,120]
[358765410,1745417445928,-549.54,0.00046602,7]
[358765413,1745417445942,-549.54,0.00046602,7]
[358765415,1745417445953,-549.54,0.00046602,7]
[358765418,1745417445964,-500.0,0.00046602,2]
[358765422,1745417445976,-500.0,0.00046602,2]
[358765427,1745417445988,-29245.7365731,0.00046602,4]
[358765431,1745417446000,-18044.7574023,0.00046602,4]
[358765433,1745417446011,-26239.57890817,0.00046603,4]
[358765472,1745417446353,-2814.81680291,0.00046603,4]
[358765475,1745417446367,-191.34086202,0.00046603,4]
[358765477,1745417446379,-3377.45913798,0.00046603,4]
[358765479,1745417446393,-2783.75117302,0.00046603,4]
[358765482,1745417446407,-3201.09753631,0.00046603,4]
[358765484,1745417446421,-858.7680018,0.00046603,4]
[358765486,1745417446433,-4650.0,0.00046603,4]
[358765500,1745417446561,-17625.2620237,0.00046603,4]
[358765502,1745417446575,-3593.17693189,0.00046603,4]
[358765505,1745417446586,-151.0,0.00046603,14]
[358765507,1745417446598,-151.0,0.00046603,14]
[358765509,1745417446609,-151.0,0.00046603,14]
[358765511,1745417446620,-2263.838601,0.00046603,14]
[358765513,1745417446631,-2263.838601,0.00046603,14]
[358765516,1745417446643,-529.160873,0.00046603,14]
[358765518,1745417446654,-529.160873,0.00046603,14]
[358765520,1745417446665,-12954.47132011,0.00046604,4]
[358765589,1745417447491,-413.565554,0.00046604,4]
[358765593,1745417447525,-81809.18673484,0.00046604,4]
[358765602,1745417447597,-182.10109226,0.00046515,2]
[358765604,1745417447607,-2072.59504774,0.00046604,4]
[358765606,1745417447619,-724.65383736,0.00046604,4]
[358765608,1745417447631,-3442.332,0.00046604,4]
[358766026,1745417454094,350.0,0.00046615,120]
[358766027,1745417454404,350.0,0.00046615,120]
[358766048,1745417454661,350.0,0.00046615,120]
[358766056,1745417454971,350.0,0.00046615,120]
[358766074,1745417455201,350.0,0.00046615,120]
[358766132,1745417456216,350.0,0.00046615,120]
[358766133,1745417456552,350.0,0.00046615,120]
[358766134,1745417456650,350.0,0.00046615,120]
[358766135,1745417456737,350.0,0.00046615,120]
[358766136,1745417456951,350.0,0.00046615,120]
[358766137,1745417457229,350.0,0.00046615,120]
[358766138,1745417457833,304.73176992,0.00046615,120]
[358766143,1745417522697,150.0,0.00030502,117]
[358766144,1745417555231,299.99,0.00046615,40]
[358766148,1745417672342,1329.99,0.00046615,120]
[358766149,1745417672639,1329.99,0.00046615,120]
[358766150,1745417672917,1329.99,0.00046615,120]
[358766151,1745417673892,1329.99,0.00046615,120]
[358766152,1745417673991,1329.99,0.00046615,120]
[358766153,1745417674082,1329.99,0.00046615,120]
[358766154,1745417675590,1329.99,0.00046615,120]
[358766155,1745417675730,1329.99,0.00046615,120]
[358766156,1745417675973,1329.99,0.00046615,120]
[358766158,1745417676696,1329.99,0.00046615,120]
[358766159,1745417677297,1329.99,0.00046615,120]
[358766160,1745417677611,1329.99,0.00046615,120]
[358766161,1745417677890,1329.99,0.00046615,120]
[358766162,1745417678148,1329.99,0.00046615,120]
[358766163,1745417678720,1329.99,0.00046615,120]
[358766164,1745417679006,1329.99,0.00046615,120]
[358766165,1745417679270,1329.99,0.00046615,120]
[358766166,1745417679517,1329.99,0.00046615,120]
[358766167,1745417679773,1329.99,0.00046615,120]
[358766168,1745417680035,1329.99,0.00046615,120]
[358766169,1745417680307,1329.99,0.00046615,120]
[358766170,1745417680561,1329.99,0.00046615,120]
[358766171,1745417680832,1329.99,0.00046615,120]
[358766172,1745417681127,1330.07793831,0.00046615,120]
[358766173,1745417685074,500.0,0.00046615,120]
[358766174,1745417685188,500.0,0.00046615,120]
[358766175,1745417685366,500.0,0.00046615,120]
[358766176,1745417685609,500.0,0.00046615,120]
[358766177,1745417685900,500.0,0.00046615,120]
[358766178,1745417686159,500.0,0.00046615,120]
[358766179,1745417730165,1000.0,0.00046615,40]
[358766180,1745417740230,500.0,0.00046615,120]
[358766181,1745417740344,500.0,0.00046615,120]
[358766182,1745417740427,500.0,0.00046615,120]
[358766183,1745417740589,500.0,0.00046615,120]
[358766184,1745417740835,500.0,0.00046615,120]
[358766185,1745417741096,500.0,0.00046615,120]
[358766191,1745418043650,1000.0,0.00046623,40]
[358766192,1745418065088,4735.80863901,5e-05,2]
[358766193,1745418065112,4735.80863901,5e-05,2]
[358766194,1745418065136,3875.71391379,5e-05,2]
[358766196,1745418085085,10000.0,0.0002,30]
[358766197,1745418105583,500.0,0.00046623,120]
[358766198,1745418105833,500.0,0.00046623,120]
[358766199,1745418106205,500.0,0.00046623,120]
[358766200,1745418106458,500.0,0.00046623,120]
[358766201,1745418106702,500.0,0.00046623,120]
[358766202,1745418106949,500.0,0.00046623,120]
[358766203,1745418107218,500.0,0.00046623,120]
[358766204,1745418107448,500.0,0.00046623,120]
[358766205,1745418107730,500.0,0.00046623,120]
[358766206,1745418107982,500.0,0.00046623,120]
[358766207,1745418108272,500.0,0.00046623,120]
[358766208,1745418108569,500.0,0.00046623,120]
[358766209,1745418108847,500.0,0.00046623,120]
[358766210,1745418109103,500.0,0.00046623,120]
[358766211,1745418109355,500.0,0.00046623,120]
[358766212,1745418109594,500.0,0.00046623,120]
[358766213,1745418110179,500.0,0.00046623,120]
[358766214,1745418115998,500.0,0.00046623,120]
[358766215,1745418116272,500.0,0.00046623,120]
[358766216,1745418116518,500.0,0.00046623,120]
[358766217,1745418116754,500.0,0.00046623,120]
[358766218,1745418117009,389.11660552,0.00046623,120]
[358766221,1745418166901,1000.0,0.00046623,120]
[358766227,1745418227177,1000.0,0.00046623,120]
[358766228,1745418231161,10032.0,0.00046623,40]
[358766229,1745418243396,1528.143,0.00046623,120]
[358766231,1745418288725,500.0,0.00046624,120]
[358766232,1745418288990,500.0,0.00046624,120]
[358766233,1745418289222,500.0,0.00046624,120]
[358766234,1745418289488,500.0,0.00046624,120]
[358766235,1745418302583,500.0,0.00046624,120]
[358766236,1745418302835,500.0,0.00046624,120]
[358766237,1745418303146,500.0,0.00046624,120]
[358766238,1745418303402,500.0,0.00046624,120]
[358766239,1745418303691,500.0,0.00046624,120]
[358766240,1745418303941,500.0,0.00046624,120]
[358766243,1745418304187,500.0,0.00046624,120]
[358766244,1745418304444,500.0,0.00046624,120]
[358766245,1745418304724,500.0,0.00046624,120]
[358766246,1745418304973,500.0,0.00046624,120]
[358766247,1745418305230,500.0,0.00046624,120]
[358766248,1745418305481,500.0,0.00046624,120]
[358766249,1745418305754,500.0,0.00046624,120]
[358766250,1745418306019,500.0,0.00046624,120]
[358766251,1745418306276,500.0,0.00046624,120]